Cogmind - Beta 15 @@@ ROGUE MODE // 2025.05.27 @ 21:50:28 Player: obl-vn Result: Self-destructed Performance ------------- Evolutions (6) 3000 Regions Visited (11) 2200 Robots Destroyed (18) 90 Value Destroyed (243) 243 Prototype IDs (0) 0 Alien Tech Used (0) 0 Bonus (0) 0 TOTAL SCORE: 5533 Bonus ------- None Cogmind --------- Core Integrity 7/1150 Matter 161/300 Energy 99/100 System Corruption 1% Temperature Cool (0) Movement Core (50) Location -4/Factory Parts ------- > --- POWER (1) -------- (None) > --- PROPULSION (8) --- (None) > --- UTILITY (8) ------ (None) > --- WEAPON (2) ------- (None) > --- INVENTORY (5) ---- Ion Cannon Peak State ------------ > --- POWER ------------ (None) > --- PROPULSION ------- Improved Treads Armored Treads Armored Treads Carbon-fiber Leg Carbon-fiber Leg Carbon-fiber Leg > --- UTILITY ---------- System Shield System Shield System Shield System Shield > --- WEAPON ----------- Grenade Launcher > --- INVENTORY -------- Xenon Bombardment Thruster Xenon Bombardment Thruster Ion Cannon [Rating: 31] Favorites ----------- Power None Propulsion Carbon-fiber Leg Treads Light Treads Leg Carbon-fiber Leg Flight Unit Xenon Bombardment Thruster Utility System Shield Hackware System Shield Weapon Grenade Launcher Launcher Grenade Launcher Build | -11 -10 -10 -9 -9 -8 -7 -6 -5 -5 -5 -4 ------- Run | Yrd Mat Min Mat Min Mat Fac Fac Fac Upp Upp Fac Slots Evolved 12 | . . . 2 . 2 2 2 2 . . 2 Power . | . . . . . . . . . . . . Propulsion 6 | . . . 1 . 2 1 . 1 . . 1 Utility 6 | . . . 1 . . 1 2 1 . . 1 Weapon . | . . . . . . . . . . . . Parts Attached 19 | . 4 . 4 . 6 . 2 . 3 . . Power . | . . . . . . . . . . . . Engine . | . . . . . . . . . . . . Core . | . . . . . . . . . . . . Reactor . | . . . . . . . . . . . . Propulsion 12 | . 2 . 1 . 6 . . . 3 . . Treads 5 | . 2 . . . 3 . . . . . . Leg 4 | . . . 1 . 3 . . . . . . Wheel . | . . . . . . . . . . . . Hover . | . . . . . . . . . . . . Flight 3 | . . . . . . . . . 3 . . Utility 5 | . . . 3 . . . 2 . . . . Device . | . . . . . . . . . . . . Storage . | . . . . . . . . . . . . Processor . | . . . . . . . . . . . . Hackware 5 | . . . 3 . . . 2 . . . . Protection . | . . . . . . . . . . . . Artifact . | . . . . . . . . . . . . Weapon 2 | . 2 . . . . . . . . . . Energy Gun . | . . . . . . . . . . . . Energy Cannon . | . . . . . . . . . . . . Ballistic Gun . | . . . . . . . . . . . . Ballistic Cannon . | . . . . . . . . . . . . Launcher 2 | . 2 . . . . . . . . . . Special Weapon . | . . . . . . . . . . . . Impact Weapon . | . . . . . . . . . . . . Slashing Weapon . | . . . . . . . . . . . . Piercing Weapon . | . . . . . . . . . . . . Special Melee Weapon . | . . . . . . . . . . . . Unidentified Prototypes . | . . . . . . . . . . . . Parts Lost 9 | . . . . . 1 . . . 3 1 4 Power . | . . . . . . . . . . . . Propulsion 3 | . . . . . . . . . 1 1 1 Utility 5 | . . . . . 1 . . . 1 . 3 Weapon 1 | . . . . . . . . . 1 . . Highest Loss Streak 3 | . . . . . 1 . . . 3 1 3 To Critical Strikes . | . . . . . . . . . . . . Average Backups 3 | 2 3 4 4 4 4 4 3 3 1 1 1 Power . | . . . . . . . . . . . . Propulsion 1 | 2 2 2 1 1 1 1 2 2 . . . Utility . | . . . . 1 1 2 1 . . . . Weapon 1 | . 1 2 2 2 1 1 . 1 1 1 1 Tool/Special . | . . . . . . . . . . . . Unused Backups 2 | . . . . . 1 . . . . . 1 Power . | . . . . . . . . . . . . Propulsion 1 | . . . . . 1 . . . . . . Utility . | . . . . . . . . . . . . Weapon 1 | . . . . . . . . . . . 1 Tool/Special . | . . . . . . . . . . . . Average Slot Usage (%) 43 | . 26 28 47 66 60 60 62 64 37 27 14 Treads 16 | . 26 28 22 22 23 23 20 17 1 . . Leg 8 | . . . 3 11 14 21 20 17 1 . . Flight 2 | . . . . . . . . . 9 9 3 Hackware 14 | . . . 22 33 20 15 15 23 21 17 10 Launcher 1 | . . . . . 2 . 6 5 3 . . Peak Build Rating 31 | . 4 2 12 12 21 25 31 31 28 15 13 Average Rating 13 | . 2 2 10 12 15 23 26 31 18 14 8 On Entrance 13 | . . 2 2 12 12 21 25 31 31 15 13 Naked Turns 29 | . . . . . . . . . . . 29 Heaviest Build 6 | . 6 . . . 3 3 3 3 3 . . Greatest Support 15 | 3 3 3 3 3 15 3 3 3 12 10 6 Greatest Overweight (x) 1 | . 1 . . . . . . . . . . Average Overweight (x) . | . . . . . . . . . . . . Largest Inventory Capacity 5 | 5 5 5 5 5 5 5 5 5 5 5 5 Average Capacity 5 | 5 5 5 5 5 5 5 5 5 5 5 5 Most Carried 5 | 4 4 4 5 4 5 5 4 3 3 1 1 Average Carried 3 | 2 3 4 4 4 4 4 3 3 1 1 1 Final Capacity 5 | 5 5 5 5 5 5 5 5 5 5 5 5 Final Carried 5 | 4 4 4 4 4 5 4 3 3 1 1 1 Class Distribution -------------------- 74% | Hacker-Mutant 25% | Mutant Dominant Class ---------------- Mutant | -10/Materials Mutant | -10/Mines Hacker-Mutant | -9/Materials Hacker-Mutant | -9/Mines Hacker-Mutant | -8/Materials Hacker-Mutant | -7/Factory Hacker-Mutant | -6/Factory Hacker-Mutant | -5/Factory Hacker-Mutant | -5/Upper Caves Hacker-Mutant | -5/Upper Caves Hacker-Mutant | -4/Factory Resources | -11 -10 -10 -9 -9 -8 -7 -6 -5 -5 -5 -4 ----------- Run | Yrd Mat Min Mat Min Mat Fac Fac Fac Upp Upp Fac Matter Collected 414 | 182 . . . . 154 . . . 78 . . Remotely . | . . . . . . . . . . . . Salvage Created 175 | . 43 . . . 100 12 . . 20 . . Parts 36 | . 11 . . . 19 4 . . 2 . . Haulers Intercepted . | . . . . . . . . . . . . Recyclers Shooed . | . . . . . . . . . . . . Parts Field Recycled . | . . . . . . . . . . . . Retrieved Matter . | . . . . . . . . . . . . Parts Self-Destructed 1 | . . . . . . . . . 1 . . Prevented . | . . . . . . . . . . . . Kills | -11 -10 -10 -9 -9 -8 -7 -6 -5 -5 -5 -4 ------- Run | Yrd Mat Min Mat Min Mat Fac Fac Fac Upp Upp Fac Combat Hostiles Destroyed 12 | . 3 . . . 7 1 . . 1 . . AOE 12 | . 3 . . . 7 1 . . 1 . . Classes Destroyed 6 | . 3 . . . 2 1 . . . . . Builder 2 | . . . . . 1 1 . . . . . Tunneler 2 | . 1 . . . 1 . . . . . . Recycler 1 | . . . . . 1 . . . . . . Watcher 1 | . 1 . . . . . . . . . . Swarmer 11 | . 3 . . . 7 . . . 1 . . Programmer 1 | . . . . . . 1 . . . . . Best Kill Streak 6 | . 5 . . . 6 2 . . 1 . . Combat Bots Only 4 | . 3 . . . 4 1 . . 1 . . Max Kills in Single Turn 5 | . 5 . . . 3 1 . . 1 . . Gunslinging . | . . . . . . . . . . . . Exploded 3 | . 3 . . . 3 1 . . 1 . . Melee . | . . . . . . . . . . . . Uniques/NPCs Destroyed . | . . . . . . . . . . . . Combat | -11 -10 -10 -9 -9 -8 -7 -6 -5 -5 -5 -4 -------- Run | Yrd Mat Min Mat Min Mat Fac Fac Fac Upp Upp Fac Hostile Shots Fired 252 | . 7 11 5 . 35 16 . 8 39 6 125 Missed 119 | . 2 3 2 . 14 3 . 4 23 3 65 Hits 133 | . 5 8 3 . 21 13 . 4 16 3 60 Melee 1 | . . . . . . . . 1 . . . Projectile 132 | . 5 8 3 . 21 13 . 3 16 3 60 Critical Strikes 5 | . . . . . 2 1 . . 1 . 1 Damage Taken 2391 | . 38 85 34 . 345 198 . 95 309 48 1239 Core 1454 | . . 26 10 . 41 2 . . 202 30 1143 Absorbed by Shields . | . . . . . . . . . . . . Core Remaining (%) 93 | 100 . 89 . 97 92 99 100 . . 76 . Volleys Fired 16 | . 1 . . . 8 6 . . 1 . . Largest 2 | . 2 . . . 1 1 . . 1 . . Hottest 60 | . 60 . . . 30 30 . . 30 . . Shots Fired 17 | . 2 . . . 8 6 . . 1 . . Gun . | . . . . . . . . . . . . Cannon . | . . . . . . . . . . . . Launcher 17 | . 2 . . . 8 6 . . 1 . . Special . | . . . . . . . . . . . . Kinetic . | . . . . . . . . . . . . Thermal . | . . . . . . . . . . . . Explosive 17 | . 2 . . . 8 6 . . 1 . . Electromagnetic . | . . . . . . . . . . . . Robot Hit Streak 5 | . . . . . 3 5 . . . . . Robot Miss Streak 1 | . . . . . . 1 . . 1 . . Penetration Max . | . . . . . . . . . . . . Secondary Targets . | . . . . . . . . . . . . Shots Hit Robots 8 | . . . . . 3 5 . . . . . Core Hits 34 | . 7 . . . 19 5 . . 3 . . Critical Kills . | . . . . . . . . . . . . Critical Parts Destroyed . | . . . . . . . . . . . . Critical Strikes . | . . . . . . . . . . . . Melee Attacks . | . . . . . . . . . . . . Impact . | . . . . . . . . . . . . Slashing . | . . . . . . . . . . . . Piercing . | . . . . . . . . . . . . Sneak Attacks . | . . . . . . . . . . . . Combat Hostiles . | . . . . . . . . . . . . Follow-up Attacks . | . . . . . . . . . . . . Damage Inflicted 1020 | . 217 23 . . 501 155 . . 124 . . Guns . | . . . . . . . . . . . . Cannons . | . . . . . . . . . . . . Explosions 964 | . 217 . . . 484 139 . . 124 . . Melee . | . . . . . . . . . . . . Ramming 56 | . . 23 . . 17 16 . . . . . Kinetic . | . . . . . . . . . . . . Thermal . | . . . . . . . . . . . . Explosive 964 | . 217 . . . 484 139 . . 124 . . Electromagnetic . | . . . . . . . . . . . . Impact . | . . . . . . . . . . . . Slashing . | . . . . . . . . . . . . Piercing . | . . . . . . . . . . . . Highest Corruption 2 | . . . . . . 2 . . . . 1 Average Corruption 1 | . . . . . . 1 . . . . 1 Corruption Purged . | . . . . . . . . . . . . Corruption Blocked . | . . . . . . . . . . . . Effects 1 | . . . . . . 1 . . . . . Message Errors 1 | . . . . . . 1 . . . . . Overload Shots . | . . . . . . . . . . . . Overflow Damage 12 | . . . . . 12 . . . . . . Projectiles . | . . . . . . . . . . . . Explosions 12 | . . . . . 12 . . . . . . Melee . | . . . . . . . . . . . . Knockbacks . | . . . . . . . . . . . . Impact . | . . . . . . . . . . . . Kinetic . | . . . . . . . . . . . . Secondary . | . . . . . . . . . . . . Self-Inflicted Damage 143 | . . 10 . . 86 7 . . 40 . . Shots 4 | . . . . . 3 . . . 1 . . Rammed 8 | . . 4 . . 1 3 . . . . . Targets Rammed 8 | . . 4 . . 1 3 . . . . . Kicked . | . . . . . . . . . . . . Crushed . | . . . . . . . . . . . . Highest Temperature 5 | . . . . . 5 . . . . . . Average Temperature 5 | . . . . . 5 . . . . . . Received Heat Transfer 336 | . . . 18 . 108 72 . 9 81 18 30 Siege Activations . | . . . . . . . . . . . . Martial Activations . | . . . . . . . . . . . . Shielding Activations . | . . . . . . . . . . . . Robots Disrupted . | . . . . . . . . . . . . Combat Hostiles . | . . . . . . . . . . . . Robots Corrupted . | . . . . . . . . . . . . Combat Hostiles . | . . . . . . . . . . . . Parts Fried . | . . . . . . . . . . . . Impact Corruptions . | . . . . . . . . . . . . Robots Melted . | . . . . . . . . . . . . Combat Hostiles . | . . . . . . . . . . . . Parts Melted . | . . . . . . . . . . . . Heat Transferred . | . . . . . . . . . . . . Parts Sabotaged . | . . . . . . . . . . . . Parts Stolen . | . . . . . . . . . . . . Parts Stripped . | . . . . . . . . . . . . Power Chain Reactions . | . . . . . . . . . . . . Alert | -11 -10 -10 -9 -9 -8 -7 -6 -5 -5 -5 -4 ------- Run | Yrd Mat Min Mat Min Mat Fac Fac Fac Upp Upp Fac Maximum Alert Level 1 | . . . . . 1 . . . . . . Low Security (%) 96 | 100 100 100 100 100 82 100 100 100 . . 100 Level 1 3 | . . . . . 17 . . . . . . Level 2 . | . . . . . . . . . . . . Level 3 . | . . . . . . . . . . . . Level 4 . | . . . . . . . . . . . . Level 5 . | . . . . . . . . . . . . High Security . | . . . . . . . . . . . . Max Security . | . . . . . . . . . . . . Peak Influence 215 | . 100 39 15 5 215 124 50 14 . . 120 Initial 97 | . . 39 3 5 1 97 50 14 . . 60 Average 60 | . 12 24 2 5 114 100 43 11 . . 65 Influence Increases 798 | . 110 . 21 . 265 57 . . 195 . 150 Destroy 0b10 Robot/C 240 | . 60 . . . 140 20 . . 20 . . Destroy 0b10 Robot/NC 30 | . 10 . . . 15 5 . . . . . Destroy Leader 52 | . 12 . . . 20 10 . . 10 . . Successful Hack 12 | . . . 6 . 6 . . . . . . Disable Machine 15 | . . . . . 15 . . . . . . Destroy Structure 59 | . 13 . . . 24 22 . . . . . Partial Spotted 15 | . . . . . . . . . . . 15 Lose Combat Pursuer 375 | . 15 . 15 . 45 . . . 165 . 135 Influence Decreases 678 | . 10 91 15 10 55 168 74 26 54 48 127 Entered New Map 337 | . . 61 6 10 4 118 54 16 3 28 37 Time Decay 261 | . 10 30 9 . 51 50 20 10 21 10 50 Lost Part 80 | . . . . . . . . . 30 10 40 Squads Dispatched 9 | . 1 . . . 4 1 . 1 . . 2 Investigation . | . . . . . . . . . . . . Extermination . | . . . . . . . . . . . . Reinforcement 9 | . 1 . . . 4 1 . 1 . . 2 Assault . | . . . . . . . . . . . . Garrison . | . . . . . . . . . . . . Intercept . | . . . . . . . . . . . . Searches Triggered . | . . . . . . . . . . . . Construction Impeded 1 | . . . . . 1 . . . . . . Haulers Reinforced . | . . . . . . . . . . . . Active Scanning Responses . | . . . . . . . . . . . . Cargo Convoy Interrupts . | . . . . . . . . . . . . Stealth | -11 -10 -10 -9 -9 -8 -7 -6 -5 -5 -5 -4 --------- Run | Yrd Mat Min Mat Min Mat Fac Fac Fac Upp Upp Fac Distress Signals 3 | . 1 . 1 . 1 . . . . . . Communications Jammed . | . . . . . . . . . . . . Distress Signals . | . . . . . . . . . . . . Times Spotted 86 | . 5 3 6 . 18 8 . 7 16 3 20 Peak Tracking Total 18 | . 5 3 8 . 7 3 . 6 12 3 18 Tactical Retreats 9 | . 1 . 1 . 2 . . . 2 . 3 Traps | -11 -10 -10 -9 -9 -8 -7 -6 -5 -5 -5 -4 ------- Run | Yrd Mat Min Mat Min Mat Fac Fac Fac Upp Upp Fac Traps Triggered 1 | . . . . . . . . 1 . . . Indirectly . | . . . . . . . . . . . . Trap Hack Attempts . | . . . . . . . . . . . . Triggered . | . . . . . . . . . . . . Disarmed . | . . . . . . . . . . . . Reprogrammed . | . . . . . . . . . . . . Reused . | . . . . . . . . . . . . Traps Extracted . | . . . . . . . . . . . . Installed . | . . . . . . . . . . . . Triggered . | . . . . . . . . . . . . Machines | -11 -10 -10 -9 -9 -8 -7 -6 -5 -5 -5 -4 ---------- Run | Yrd Mat Min Mat Min Mat Fac Fac Fac Upp Upp Fac Machines Disabled 2 | . 1 . . . 1 . . . . . . Max in Single Turn 1 | . 1 . . . 1 . . . . . . Garrison Access 1 | . . . . . . 1 . . . . . Machines Repaired . | . . . . . . . . . . . . Machines Dismantled . | . . . . . . . . . . . . Machines Sabotaged . | . . . . . . . . . . . . Overloaded Fab Kills . | . . . . . . . . . . . . Hacking | -11 -10 -10 -9 -9 -8 -7 -6 -5 -5 -5 -4 --------- Run | Yrd Mat Min Mat Min Mat Fac Fac Fac Upp Upp Fac Machines Accessed 5 | . . . 2 . 1 1 1 . . . . Terminals 4 | . . . 2 . 1 . 1 . . . . Fabricators . | . . . . . . . . . . . . Repair Stations . | . . . . . . . . . . . . Recycling Units . | . . . . . . . . . . . . Scanalyzers . | . . . . . . . . . . . . Garrison Access 1 | . . . . . . 1 . . . . . Total Hacks 10 | . . . 2 . 1 5 2 . . . . Successful 4 | . . . 2 . 1 1 . . . . . Failed 6 | . . . . . . 4 2 . . . . Catastrophic 1 | . . . . . . 1 . . . . . Database Lockouts . | . . . . . . . . . . . . Manual 5 | . . . 2 . 1 . 2 . . . . Terminals 5 | . . . 2 . 1 . 2 . . . . Fabricators . | . . . . . . . . . . . . Repair Stations . | . . . . . . . . . . . . Recycling Units . | . . . . . . . . . . . . Scanalyzers . | . . . . . . . . . . . . Garrison Access 5 | . . . . . . 5 . . . . . Terminal Hacks 3 | . . . 2 . 1 . . . . . . Zone Layout 3 | . . . 2 . 1 . . . . . . Fabricator Hacks . | . . . . . . . . . . . . Repair Station Hacks . | . . . . . . . . . . . . Recycling Unit Hacks . | . . . . . . . . . . . . Scanalyzer . | . . . . . . . . . . . . Garrison Access Hacks 1 | . . . . . . 1 . . . . . Seal Access 1 | . . . . . . 1 . . . . . Unauthorized Hacks . | . . . . . . . . . . . . Terminals . | . . . . . . . . . . . . Fabricators . | . . . . . . . . . . . . Repair Stations . | . . . . . . . . . . . . Recycling Units . | . . . . . . . . . . . . Scanalyzers . | . . . . . . . . . . . . Garrison Access . | . . . . . . . . . . . . Data Cores Recovered . | . . . . . . . . . . . . Used . | . . . . . . . . . . . . Hacking Detections 2 | . . . 1 . 1 . . . . . . Full Trace Events . | . . . . . . . . . . . . Feedback Events . | . . . . . . . . . . . . Feedback Blocked . | . . . . . . . . . . . . Robot Schematics Acquired . | . . . . . . . . . . . . Robots Built . | . . . . . . . . . . . . Authchips . | . . . . . . . . . . . . Time . | . . . . . . . . . . . . Total Robot Build Rating . | . . . . . . . . . . . . Part Schematics Acquired . | . . . . . . . . . . . . Parts Built . | . . . . . . . . . . . . Authchips . | . . . . . . . . . . . . Time . | . . . . . . . . . . . . Total Part Build Rating . | . . . . . . . . . . . . Parts Repaired . | . . . . . . . . . . . . Time . | . . . . . . . . . . . . Parts Recycled . | . . . . . . . . . . . . Recycled Matter . | . . . . . . . . . . . . Retrieved Matter . | . . . . . . . . . . . . Retrieved Components . | . . . . . . . . . . . . Parts Scanalyzed . | . . . . . . . . . . . . Part Schematics Acquired . | . . . . . . . . . . . . Parts Damaged . | . . . . . . . . . . . . Bothacking | -11 -10 -10 -9 -9 -8 -7 -6 -5 -5 -5 -4 ------------ Run | Yrd Mat Min Mat Min Mat Fac Fac Fac Upp Upp Fac Used RIF Installer . | . . . . . . . . . . . . Robots Hacked . | . . . . . . . . . . . . Non-combat . | . . . . . . . . . . . . Combat . | . . . . . . . . . . . . Robot Hacks Applied . | . . . . . . . . . . . . Relay Couplers Released . | . . . . . . . . . . . . Fabnet Peak Effective % . | . . . . . . . . . . . . Robots Rewired . | . . . . . . . . . . . . Allies Hacked . | . . . . . . . . . . . . Hacks Repelled . | . . . . . . . . . . . . Allies | -11 -10 -10 -9 -9 -8 -7 -6 -5 -5 -5 -4 -------- Run | Yrd Mat Min Mat Min Mat Fac Fac Fac Upp Upp Fac Total Allies . | . . . . . . . . . . . . Largest Group . | . . . . . . . . . . . . Highest-Rated Group . | . . . . . . . . . . . . Highest-Rated Ally . | . . . . . . . . . . . . Total Orders . | . . . . . . . . . . . . Ally Attacks . | . . . . . . . . . . . . Total Damage . | . . . . . . . . . . . . Kills . | . . . . . . . . . . . . Allies Corrupted . | . . . . . . . . . . . . Allies Melted . | . . . . . . . . . . . . Intel | -11 -10 -10 -9 -9 -8 -7 -6 -5 -5 -5 -4 ------- Run | Yrd Mat Min Mat Min Mat Fac Fac Fac Upp Upp Fac Active Infowar (turns) . | . . . . . . . . . . . . Robot Analysis Total . | . . . . . . . . . . . . Derelict Logs Recovered 1 | . . 1 . . . . . . . . . Drone Launches . | . . . . . . . . . . . . Drone Recoveries . | . . . . . . . . . . . . Exploration | -11 -10 -10 -9 -9 -8 -7 -6 -5 -5 -5 -4 ------------- Run | Yrd Mat Min Mat Min Mat Fac Fac Fac Upp Upp Fac Turns Passed 758 | 23 56 76 52 5 128 115 44 24 86 33 116 Spaces Moved 1456 | 37 89 143 91 9 191 187 82 48 214 95 270 Core 954 | 37 89 143 91 9 190 187 82 48 . . 78 Treads . | . . . . . . . . . . . . Legs 1 | . . . . . 1 . . . . . . Wheels . | . . . . . . . . . . . . Hover . | . . . . . . . . . . . . Flight 501 | . . . . . . . . . 214 95 192 Fastest Speed 34 | 50 50 50 50 50 50 50 50 50 34 34 40 Average Speed 45 | 50 51 50 50 50 50 50 50 50 35 34 42 Slowest Speed 120 | 50 100 50 50 50 120 50 50 50 40 40 50 Overloaded Moves . | . . . . . . . . . . . . Propulsion Burnouts . | . . . . . . . . . . . . Robots Hopped 6 | . . . . . . . . . 1 . 5 Potential Cave-ins . | . . . . . . . . . . . . Cave-ins Triggered . | . . . . . . . . . . . . Exploration Rate (%) 21 | 4 31 54 17 5 48 9 4 3 51 18 15 Regions Visited 11 Branch Regions 4 Pre-discovered Areas 1 | . . 1 . . . . . . . . . Known Exits Taken . | . . . . . . . . . . . . Unknown Exits Taken 11 | 1 1 1 1 1 1 1 1 1 1 1 . Scrap Searched . | . . . . . . . . . . . . Spaces Dug . | . . . . . . . . . . . . Terrain Destroyed 68 | . 11 . . . 19 28 . . 10 . . Melee . | . . . . . . . . . . . . Projectile . | . . . . . . . . . . . . AOE 68 | . 11 . . . 19 28 . . 10 . . Terrain Rammed . | . . . . . . . . . . . . Walls Destroyed . | . . . . . . . . . . . . Machines Disabled . | . . . . . . . . . . . . Actions | -11 -10 -10 -9 -9 -8 -7 -6 -5 -5 -5 -4 --------- Run | Yrd Mat Min Mat Min Mat Fac Fac Fac Upp Upp Fac Total 1517 | 40 97 146 95 8 216 202 84 47 223 94 265 Wait . | . . . . . . . . . . . . Move 1434 | 36 88 142 90 8 190 186 81 47 211 94 261 Hop 5 | . . . . . . . . . 1 . 4 Pick Up 12 | 4 2 . 1 . 1 2 1 . 1 . . Fast Attach 5 | . . . 3 . 2 . . . . . . Attach 16 | . 4 . 1 . 3 3 2 . 3 . . Detach 6 | . 2 . . . 3 1 . . . . . Swap 4 | . . . . . 4 . . . . . . Drop 11 | . . . . . 4 1 . . 6 . . Fire 16 | . 1 . . . 8 6 . . 1 . . Melee . | . . . . . . . . . . . . Ram 8 | . . 4 . . 1 3 . . . . . Kick . | . . . . . . . . . . . . Crush . | . . . . . . . . . . . . Escape Stasis . | . . . . . . . . . . . . Rewire . | . . . . . . . . . . . . Trap . | . . . . . . . . . . . . Miscellaneous . | . . . . . . . . . . . . Route ------- -11/Scrapyard -10/Materials -10/Mines -9/Materials -9/Mines (discovered 2 exits: *Mat / [*Zio]) -8/Materials -7/Factory -6/Factory -5/Factory -5/Upper Caves -5/Upper Caves -4/Factory History --------- Turn | Location | Event 9 | -11/Scrapyard | Discovered new exit (range 15) 24 | -11/Scrapyard | Entered Materials 69 | -10/Materials | Discovered new exit (range 7) 80 | -10/Materials | Entered Mines 147 | -10/Mines | Discovered new exit (range 12) 156 | -10/Mines | Entered Materials 156 | -9/Materials | Evolved 2 slots: Propulsion x1, Utility x1 202 | -9/Materials | Discovered new exit (range 12) 208 | -9/Materials | Entered Mines 208 | -9/Mines | Discovered new exit (range 9) 209 | -9/Mines | A Derelict revealed a hidden shortcut to a safe place 213 | -9/Mines | Entered Materials 213 | -8/Materials | Evolved 2 slots: Propulsion x2 328 | -8/Materials | Met 7R-MNS 333 | -8/Materials | Discovered new exit (range 11) 341 | -8/Materials | Entered Factory 341 | -7/Factory | Evolved 2 slots: Propulsion x1, Utility x1 450 | -7/Factory | Discovered new exit (range 6) 456 | -7/Factory | Entered another Factory area 456 | -6/Factory | Evolved 2 slots: Utility x2 473 | -6/Factory | Build established: Hacker-Mutant 481 | -6/Factory | Discovered new exit (range 9) 500 | -6/Factory | Entered another Factory area 500 | -5/Factory | Evolved 2 slots: Propulsion x1, Utility x1 517 | -5/Factory | Discovered new exit (range 16) 524 | -5/Factory | Entered Upper Caves 584 | -5/Upper Caves | Attracted the attention of an 0b10 checkpoint 605 | -5/Upper Caves | Discovered new exit (range 14) 610 | -5/Upper Caves | Entered another Upper Caves area 615 | -5/Upper Caves | Encountered a Warlord checkpoint 618 | -5/Upper Caves | Lost 3 parts (1n1u1w) 638 | -5/Upper Caves | Attracted the attention of an 0b10 checkpoint 640 | -5/Upper Caves | Discovered new exit (range 9) 643 | -5/Upper Caves | Entered Factory 643 | -4/Factory | Evolved 2 slots: Propulsion x1, Utility x1 725 | -4/Factory | Core integrity fell below 50% 734 | -4/Factory | Core integrity fell below 20% 759 | -4/Factory | Self-destructed Last Messages --------------- 00711_ Slug penetrates Wall. 00712_ K-01 Serf cleans the Matter Pump. 00720_ Xenon Bombardment Thruster destroyed. 00720_ Knocked back. 00722_ Slug penetrates Wall. 00723_ Slug penetrates H-71 Marshal. 00724_ Knocked back. 00726_ Penetrated by Slug. 00726_ Knocked back. 00727_ ALERT: Hostiles spotted, dispatching reinforcements to Terminal F009. 00727_ Penetrated by Slug. 00728_ Knocked back. 00730_ Slug penetrates Wall. 00730_ Penetrated by Slug. 00730_ System Shield destroyed. 00733_ Slug penetrates K-01 Serf. 00733_ K-01 Serf destroyed. 00733_ Slug penetrates Door. 00736_ K-01 Serf collects debris. Map ----- +----------------------------------------------------+ | ?????????????????????????????????????????????????? | | ?????????????????????????????????????????????????? | | ?????????????????????????????????????????????????? | | ?????????????????????????????????????????????????? | | ?????????????????????????????????????????????????? | | ?????????????????????????????????????????????????? | | ?????????????????????????????????????????????????? | | ?????????????????????????????????????????????????? | | ?????????????????????????????????????????????????? | | ?????????????????????????????????????????????????? | | ?????????????????????????????????????????????????? | | ?????????????????????????H???????????????????????? | | ?????????????????????????????????????????????????? | | ?????????????????????????????????????????????????? | | ??????????????????????????? ????????????????????? | | ????????????????????????? ????????????????????? | | ????????????????????????? ???????????????????? | | ????????????????????????? ???????????????????? | | ???????????????????????? ###+##############?? | | ???????????????????????? #] ?? | | ???????????????????????? # """ """ | | ????????????????????????? # """ """ ? | | ?????????????????????????? # """ """??? | | ????????????????????????????? #! ????? | | ??????????????????##+########### # ??????? | | ??????????????????# @ # ###+######### | | ??????????????????# # # | | ??????????????????# + # | | ??????????????????# # # | | ??????????????????# """" """" # # | | ??????????????????# """" """" # # | | ??????????????????# """" """" ######## # | | ??????????????????+ """" """" #??????# ###+## | | ??????????????????# ??""" """" #??????# | | ???????????????????????"" "??" #??????# | | ????????????????????????" "??" #??????# | | ???????????????????????? ??? #??????# | | ????????????????????????##???###??????# | | ??????????????????????????????????????############ | | ?????????????????????????????????????????????????? | | ?????????????????????????????????????????????????? | | ?????????????????????????????????????????????????? | | ?????????????????????????????????????????????????? | | ?????????????????????????????????????????????????? | | ?????????????????????????????????????????????????? | | ?????????????????????????????????????????????????? | | ?????????????????????????????????????????????????? | | ?????????????????????????????????????????????????? | | ?????????????????????????????????????????????????? | | ?????????????????????????????????????????????????? | +----------------------------------------------------+ Best States ------------- Heat Dissipation 43 Energy Generation 5 Energy Capacity 100 Matter Stores 262 Matter Capacity 300 Sight Range 16 Terrain Scan Density 10 Evasion (%) 63 Recoil Reduction 1 Defensive Hacking 40 Item Schematics ----------------- None Robot Schematics ------------------ None Fabricated ------------ Nothing Repaired ---------- Nothing Alien Tech Used ----------------- None Achievements -------------- None Challenges ------------ None Game ------ Seed ElectronOvertunedHammer Manual? 0 Play Time 00:17:24 Cumulative 52.6 hours Start 2025.05.27 @ 21:35:26 End 2025.05.27 @ 21:50:28 Sessions 1 Manual Loads 0 Difficulty Rogue Special Mode None Game No. 38 Rogue 38 Adventurer 0 Explorer 0 Win Type - Total 1 Types 0/0/0/1/0/0/0/0/0/0 Lore% 20 Gallery% 33 Achievement% 38 Wizard Run 0 Options --------- Layout 1 ASCII 0 Keyboard 0 Movement Mouse Keybinds 0 Fullscreen 1 Font 32/SmallcapsGlow Map View 50x35 Zoom Use 0% Tactical HUD 1 Map Filters NONE Filters NONE Steam 1 RUN: 31ee6cc3-cf7f-4ed8-8ac2-7bb3a7e24e93